fUSD/lending_fUSD_20250208
["ID","MTS","AMOUNT","RATE_DAILY","PERIOD"]
[352319704,1739040657472,-1663.58,0.00010683,2]
[352319705,1739040657482,-500.0,0.00010683,2]
[352319706,1739040657491,-500.0,0.00010684,2]
[352319707,1739040657501,-500.0,0.00010684,2]
[352319708,1739040657510,-500.0,0.00010684,2]
[352319709,1739040657519,-500.0,0.00010684,2]
[352319710,1739040657529,-500.0,0.00010684,2]
[352319711,1739040657538,-151.0,0.00010684,2]
[352319712,1739040657548,-500.0,0.00010684,2]
[352319713,1739040657560,-369.09801824,0.00010684,2]
[352319714,1739040657569,-500.0,0.00010684,2]
[352319715,1739040657578,-500.0,0.00010684,2]
[352319716,1739040657588,-500.0,0.00010684,2]
[352319717,1739040657598,-500.0,0.00010684,2]
[352319718,1739040657608,-500.0,0.00010684,2]
[352319719,1739040657618,-500.0,0.00010684,2]
[352319720,1739040657628,-500.0,0.00010684,2]
[352319721,1739040657637,-500.0,0.00010684,2]
[352319722,1739040657647,-500.0,0.00010684,2]
[352319723,1739040657656,-500.0,0.00010684,2]
[352319724,1739040657667,-500.0,0.00010684,2]
[352319725,1739040657677,-500.0,0.00010684,2]
[352319726,1739040657686,-500.0,0.00010684,2]
[352319727,1739040657696,-500.0,0.00010684,2]
[352319728,1739040657705,-500.0,0.00010684,2]
[352319729,1739040657715,-500.0,0.00010684,2]
[352319730,1739040657725,-500.0,0.00010684,2]
[352319731,1739040657735,-500.0,0.00010684,2]
[352319732,1739040657744,-500.0,0.00010684,2]
[352319733,1739040657754,-500.0,0.00010684,2]
[352319734,1739040657763,-500.0,0.00010684,2]
[352319735,1739040657772,-500.0,0.00010684,2]
[352319736,1739040657782,-500.0,0.00010684,2]
[352319737,1739040657792,-500.0,0.00010684,2]
[352319738,1739040657801,-500.0,0.00010684,2]
[352319739,1739040657810,-500.0,0.00010684,2]
[352319740,1739040657820,-151.0,0.00010684,2]
[352319741,1739040657830,-500.0,0.00010684,2]
[352319742,1739040657839,-500.0,0.00010684,2]
[352319743,1739040657849,-500.0,0.00010684,2]
[352319744,1739040657859,-892.29,0.00010684,2]
[352319745,1739040657869,-500.0,0.00010684,2]
[352319746,1739040657878,-704.67,0.00010684,2]
[352319747,1739040657887,-500.0,0.00010684,2]
[352319748,1739040657897,-632.37,0.00010684,2]
[352319749,1739040657906,-500.0,0.00010684,2]
[352319750,1739040657917,-698.41,0.00010684,2]
[352319751,1739040657926,-500.0,0.00010684,2]
[352319752,1739040657935,-500.0,0.00010684,2]
[352319753,1739040657944,-500.0,0.00010684,2]
[352319754,1739040657954,-500.0,0.00010684,2]
[352319755,1739040657963,-516.51,0.00010684,2]
[352319756,1739040657972,-500.0,0.00010684,2]
[352319757,1739040657982,-500.0,0.00010684,2]
[352319758,1739040657991,-992.45,0.00010684,2]
[352319759,1739040658000,-500.0,0.00010684,2]
[352319760,1739040658010,-500.0,0.00010684,2]
[352319761,1739040658019,-500.0,0.00010684,2]
[352319762,1739040658029,-500.0,0.00010684,2]
[352319763,1739040658038,-500.0,0.00010684,2]
[352319764,1739040658047,-801.97,0.00010684,2]
[352319765,1739040658057,-500.0,0.00010684,2]
[352319766,1739040658066,-541.42,0.00010684,2]
[352319767,1739040658076,-598.71,0.00010684,2]
[352319768,1739040658085,-500.0,0.00010684,2]
[352319769,1739040658095,-500.0,0.00010684,2]
[352319770,1739040658104,-570.8,0.00010684,2]
[352319771,1739040658113,-863.44,0.00010684,2]
[352319772,1739040658122,-500.0,0.00010684,2]
[352319773,1739040658132,-500.0,0.00010684,2]
[352319774,1739040658142,-500.0,0.00010684,2]
[352319775,1739040658151,-500.0,0.00010684,2]
[352319776,1739040658161,-959.22,0.00010684,2]
[352319777,1739040658170,-500.0,0.00010684,2]
[352319778,1739040658179,-500.0,0.00010684,2]
[352319779,1739040658188,-500.0,0.00010684,2]
[352319780,1739040658198,-500.0,0.00010684,2]
[352319781,1739040658207,-509.81,0.00010684,2]
[352319782,1739040658216,-500.0,0.00010684,2]
[352319783,1739040658226,-500.0,0.00010684,2]
[352319784,1739040658236,-824.88,0.00010684,2]
[352319785,1739040658245,-500.0,0.00010684,2]
[352319786,1739040658254,-215.58,0.00010684,2]
[352319787,1739040658263,-818.12,0.00010684,2]
[352319788,1739040658273,-500.0,0.00010684,2]
[352319789,1739040658283,-563.6965401,0.00010684,2]
[352319790,1739040658292,-500.0,0.00010684,2]
[352319791,1739040658302,-500.0,0.00010684,2]
[352319792,1739040658311,-533.58,0.00010684,2]
[352319793,1739040658320,-500.0,0.00010684,2]
[352319794,1739040658330,-500.0,0.00010684,2]
[352319795,1739040658339,-500.0,0.00010684,2]
[352319796,1739040658348,-500.0,0.00010684,2]
[352319797,1739040658358,-500.0,0.00010684,2]
[352319798,1739040658368,-500.0,0.00010684,2]
[352319799,1739040658377,-514.1,0.00010684,2]
[352319800,1739040658386,-500.0,0.00010684,2]
[352319801,1739040658396,-500.0,0.00010684,2]
[352319802,1739040658406,-525.36,0.00010684,2]
[352319803,1739040658419,-500.0,0.00010684,2]
[352319804,1739040658428,-500.0,0.00010684,2]
[352319805,1739040658438,-705.24,0.00010684,2]
[352319806,1739040658448,-500.0,0.00010684,2]
[352319807,1739040658457,-500.0,0.00010684,2]
[352319808,1739040658467,-500.0,0.00010684,2]
[352319809,1739040658477,-693.46,0.00010684,2]
[352319810,1739040658487,-243.64,0.00010684,2]
[352319811,1739040658496,-1380.81,0.00010684,2]
[352319812,1739040658506,-826.86,0.00010684,2]
[352319813,1739040658515,-500.0,0.00010684,2]
[352319814,1739040658525,-1217.96,0.00010684,2]
[352319815,1739040658535,-950.06,0.00010684,2]
[352319816,1739040658544,-1018.16,0.00010684,2]
[352319817,1739040658557,-500.0,0.00010684,2]
[352319818,1739040658566,-4440.08,0.00010684,2]
[352319819,1739040658576,-157.53,0.00010684,2]
[352319820,1739040658586,-500.0,0.00010684,2]
[352319821,1739040658595,-907.44,0.00010684,2]
[352319822,1739040658604,-550.5,0.00010684,2]
[352319823,1739040658614,-1206.48,0.00010684,2]
[352319824,1739040658623,-500.0,0.00010684,2]
[352319825,1739040658634,-500.0,0.00010684,2]
[352319826,1739040658644,-500.0,0.00010684,2]
[352319827,1739040658654,-1299.55,0.00010684,2]
[352319828,1739040658666,-509.54,0.00010684,2]
[352319829,1739040658675,-187.65597308,0.00010684,2]
[352319830,1739040658684,-1082.73,0.00010684,2]
[352319831,1739040658694,-1026.14,0.00010684,2]
[352319832,1739040658703,-500.0,0.00010684,2]
[352319833,1739040658713,-159.82997388,0.00010684,2]
[352319834,1739040658723,-1645.78,0.00010684,2]
[352319835,1739040658732,-500.0,0.00010684,2]
[352319836,1739040658741,-1105.4,0.00010684,2]
[352319837,1739040658751,-941.65,0.00010684,2]
[352319838,1739040658760,-1091.51,0.00010684,2]
[352319839,1739040658770,-500.0,0.00010684,2]
[352319840,1739040658780,-1509.86,0.00010684,2]
[352319841,1739040658790,-500.0,0.00010684,2]
[352319842,1739040658800,-1781.25,0.00010684,2]
[352319843,1739040658809,-500.0,0.00010684,2]
[352319844,1739040658819,-500.0,0.00010684,2]
[352319845,1739040658828,-1219.25,0.00010684,2]
[352319846,1739040658838,-500.0,0.00010684,2]
[352319847,1739040658848,-1120.47,0.00010684,2]
[352319848,1739040658857,-513.37,0.00010684,2]
[352319849,1739040658868,-500.0,0.00010684,2]
[352319850,1739040658878,-500.0,0.00010684,2]
[352319851,1739040658887,-1699.35,0.00010684,2]
[352319852,1739040658896,-500.0,0.00010684,2]
[352319853,1739040658906,-1753.37,0.00010684,2]
[352319854,1739040658919,-500.0,0.00010684,2]
[352319855,1739040658929,-500.0,0.00010684,2]
[352319856,1739040658940,-1179.89,0.00010684,2]
[352319857,1739040658949,-500.0,0.00010684,2]
[352319858,1739040658960,-500.0,0.00010684,2]
[352319859,1739040658970,-500.0,0.00010684,2]
[352319860,1739040658980,-500.0,0.00010684,2]
[352319861,1739040658989,-500.0,0.00010684,2]
[352319862,1739040658999,-942.33,0.00010684,2]
[352319863,1739040659011,-500.0,0.00010684,2]
[352319864,1739040659020,-500.0,0.00010684,2]
[352319865,1739040659030,-22609.515993,0.000107,2]
[352319866,1739040659040,-167.34,0.00010734,2]
[352319867,1739040659050,-3469.93171,0.0001077,2]
[352319868,1739040659060,-500.0,0.00010773,2]
[352319869,1739040659070,-1721.0,0.00010777,2]
[352319870,1739040659081,-389.17940693,0.0001078,2]
[352319871,1739040659091,-338.50452659,0.0001078,2]
[352319872,1739040659103,-613457.6183986,0.0001078,2]
[352319873,1739040659443,-941.79370603,0.0001078,2]
[352319874,1739040659455,-734.09,0.0001078,2]
[352319875,1739040659675,-245921.19155851,0.0001078,2]
[352319876,1739040659687,-157167.65263142,0.0001078,2]
[352319877,1739040659697,-389.17940693,0.000108,2]
[352319878,1739040659706,-500.0,0.00010805,2]
[352319879,1739040659716,-500.0,0.00010805,2]
[352319880,1739040659726,-1695.768,0.00010807,2]
[352319881,1739040659736,-389.17940693,0.0001082,2]
[352319882,1739040659745,-1348.87,0.0001082,2]
[352319883,1739040659755,-500.0,0.0001082,2]
[352319884,1739040659764,-500.0,0.0001082,2]
[352319885,1739040659773,-793.09,0.0001082,2]
[352319886,1739040659782,-500.0,0.0001082,2]
[352319887,1739040659791,-500.0,0.0001082,2]
[352319888,1739040659801,-872.27,0.0001082,2]
[352319889,1739040659810,-1066.48,0.0001082,2]
[352319890,1739040659819,-890.85,0.0001082,2]
[352319891,1739040659829,-500.0,0.0001082,2]
[352319892,1739040659838,-500.0,0.0001082,2]
[352319893,1739040659849,-500.0,0.0001082,2]
[352319894,1739040659858,-500.0,0.0001082,2]
[352319895,1739040659868,-500.0,0.0001082,2]
[352319896,1739040659877,-500.0,0.0001082,2]
[352319897,1739040659886,-500.0,0.0001082,2]
[352319898,1739040659896,-714.72,0.0001082,2]
[352319899,1739040659905,-500.0,0.0001082,2]
[352319900,1739040659915,-890.34,0.0001082,2]
[352319901,1739040659925,-500.0,0.0001082,2]
[352319902,1739040659934,-500.0,0.0001082,2]
[352319903,1739040659943,-899.55,0.0001082,2]
[352319904,1739040659952,-500.0,0.0001082,2]
[352319905,1739040659961,-1116.403512,0.0001082,2]
[352319906,1739040659971,-895.34,0.0001082,2]
[352319907,1739040659980,-500.0,0.0001082,2]
[352319908,1739040659989,-500.0,0.0001082,2]
[352319909,1739040659998,-500.0,0.0001082,2]
[352319910,1739040660009,-1028.215139,0.0001082,2]
[352319911,1739040660027,-500.0,0.0001082,2]
[352319912,1739040660037,-500.0,0.0001082,2]
[352319913,1739040660047,-500.0,0.0001082,2]
[352319914,1739040660058,-592.01,0.0001082,2]
[352319915,1739040660067,-1035.14,0.0001082,2]
[352319916,1739040660077,-876.65,0.0001082,2]
[352319917,1739040660087,-500.0,0.0001082,2]
[352319918,1739040660096,-931.39,0.0001082,2]
[352319919,1739040660105,-500.0,0.0001082,2]
[352319920,1739040660114,-500.0,0.0001082,2]
[352319921,1739040660123,-875.35,0.0001082,2]
[352319922,1739040660132,-869.1,0.0001082,2]
[352319923,1739040660141,-500.0,0.0001082,2]
[352319924,1739040660152,-500.0,0.0001082,2]
[352319925,1739040660162,-582.1,0.0001082,2]
[352319926,1739040660172,-500.0,0.0001082,2]
[352319927,1739040660181,-793.14,0.0001082,2]
[352319928,1739040660190,-500.0,0.0001082,2]
[352319929,1739040660199,-1074.27,0.0001082,2]
[352319930,1739040660209,-848.7,0.0001082,2]
[352319931,1739040660219,-685.6,0.0001082,2]
[352319932,1739040660228,-500.0,0.0001082,2]
[352319933,1739040660238,-500.0,0.0001082,2]
[352319934,1739040660247,-500.0,0.0001082,2]
[352319935,1739040660256,-500.0,0.0001082,2]
[352319936,1739040660266,-500.0,0.0001082,2]
[352319937,1739040660275,-500.0,0.0001082,2]
[352319938,1739040660285,-500.0,0.0001082,2]
[352319939,1739040660295,-500.0,0.0001082,2]
[352319940,1739040660304,-500.0,0.0001082,2]
[352319941,1739040660313,-787.81,0.0001082,2]
[352319942,1739040660323,-682.13,0.0001082,2]
[352319943,1739040660332,-500.0,0.0001082,2]
[352319944,1739040660341,-500.0,0.0001082,2]
[352319945,1739040660351,-1272.7,0.0001082,2]
[352319946,1739040660360,-211.10624289,0.0001082,2]
[352319947,1739040660370,-1626.06,0.0001082,2]
[352319948,1739040660379,-500.0,0.0001082,2]
[352319949,1739040660388,-500.0,0.0001082,2]
[352319950,1739040660398,-578.22,0.0001082,2]
[352319951,1739040660407,-500.0,0.0001082,2]
[352319952,1739040660421,-1035.7,0.0001082,2]
[352319953,1739040660430,-500.0,0.0001082,2]
[352319954,1739040660439,-1103.82,0.0001082,2]
[352319955,1739040660449,-1509.65,0.0001082,2]
[352319956,1739040660458,-500.0,0.0001082,2]
[352319957,1739040660467,-813.08,0.0001082,2]
[352319958,1739040660477,-1060.65,0.0001082,2]
[352319959,1739040660486,-629.65,0.0001082,2]
[352319960,1739040660495,-975.76,0.0001082,2]
[352319961,1739040660505,-2030.46,0.0001082,2]
[352319962,1739040660515,-1299.78,0.0001082,2]
[352319963,1739040660524,-500.0,0.0001082,2]
[352319964,1739040660534,-1121.57,0.0001082,2]
[352319965,1739040660544,-956.12,0.0001082,2]
[352319966,1739040660555,-1058.02,0.0001082,2]
[352319967,1739040660565,-872.69,0.0001082,2]
[352319968,1739040660574,-500.0,0.0001082,2]
[352319969,1739040660584,-1626.96,0.0001082,2]
[352319970,1739040660594,-784.0,0.0001082,2]
[352319971,1739040660603,-2570.48,0.0001082,2]
[352319972,1739040660613,-1224.32,0.0001082,2]
[352319973,1739040660622,-500.0,0.0001082,2]
[352319974,1739040660632,-1394.44,0.0001082,2]
[352319975,1739040660641,-1320.72,0.0001082,2]
[352319976,1739040660651,-500.0,0.0001082,2]
[352319977,1739040660660,-1577.09,0.0001082,2]
[352319978,1739040660670,-950.54,0.0001082,2]
[352319979,1739040660680,-500.0,0.0001082,2]
[352319980,1739040660690,-4199.11,0.0001082,2]
[352319981,1739040660699,-855.99,0.0001082,2]
[352319982,1739040660711,-937.51,0.0001082,2]
[352319983,1739040660722,-905.52,0.0001082,2]
[352319984,1739040660732,-500.0,0.0001082,2]
[352319985,1739040660742,-1507.74,0.0001082,2]
[352319986,1739040660752,-889.65,0.0001082,2]
[352319987,1739040660762,-2539.11,0.0001082,2]
[352319988,1739040660772,-500.0,0.0001082,2]
[352319989,1739040660782,-1440.29,0.0001082,2]
[352319990,1739040660794,-500.0,0.0001082,2]
[352319991,1739040660804,-577.99,0.0001082,2]
[352319992,1739040660814,-2091.76,0.0001082,2]
[352319993,1739040660824,-1029.88,0.0001082,2]
[352319994,1739040660834,-1156.42,0.0001082,2]
[352319995,1739040660844,-1705.0,0.0001082,2]
[352319996,1739040660854,-1782.34,0.0001082,2]
[352319997,1739040660863,-1767.73,0.0001082,2]
[352319998,1739040660874,-500.0,0.0001082,2]
[352319999,1739040660884,-500.0,0.0001082,2]
[352320000,1739040660894,-1128.81,0.0001082,2]
[352320001,1739040660904,-500.0,0.0001082,2]
[352320002,1739040660918,-990.75,0.0001082,2]
[352320003,1739040660928,-500.0,0.0001082,2]
[352320004,1739040660938,-1250.13,0.0001082,2]
[352320005,1739040660948,-1568.08,0.0001082,2]
[352320006,1739040660958,-500.0,0.0001082,2]
[352320007,1739040660968,-909.38,0.0001082,2]
[352320008,1739040660977,-631.4,0.0001082,2]
[352320009,1739040660987,-500.0,0.0001082,2]
[352320010,1739040660997,-1218.52,0.0001082,2]
[352320011,1739040661007,-1944.78,0.0001082,2]
[352320012,1739040661017,-500.0,0.0001082,2]
[352320013,1739040661027,-500.0,0.0001082,2]
[352320014,1739040661036,-1135.79,0.0001082,2]
[352320015,1739040661047,-1784.48,0.0001082,2]
[352320016,1739040661057,-1201.96,0.0001082,2]
[352320017,1739040661067,-1159.47,0.0001082,2]
[352320018,1739040661077,-500.0,0.0001082,2]
[352320019,1739040661090,-2050.98,0.0001082,2]
[352320020,1739040661100,-767.37,0.0001082,2]
[352320021,1739040661110,-500.0,0.0001082,2]
[352320022,1739040661120,-1074.59,0.0001082,2]
[352320023,1739040661130,-1957.48,0.0001082,2]
[352320024,1739040661139,-1546.44,0.0001082,2]
[352320025,1739040661149,-760.52,0.0001082,2]
[352320026,1739040661159,-1057.92,0.0001082,2]
[352320027,1739040661170,-500.0,0.0001082,2]
[352320028,1739040661179,-1574.93,0.0001082,2]
[352320029,1739040661190,-1020.46,0.0001082,2]
[352320030,1739040661200,-500.0,0.0001082,2]
[352320031,1739040661210,-3009.18,0.0001082,2]
[352320032,1739040661220,-500.0,0.0001082,2]
[352320033,1739040661230,-650.92,0.0001082,2]
[352320034,1739040661240,-1095.06,0.0001082,2]
[352320035,1739040661249,-1269.34,0.0001082,2]
[352320036,1739040661259,-538.14532711,0.0001082,2]
[352320037,1739040661270,-2250.02,0.0001082,2]
[352320038,1739040661285,-500.0,0.0001082,2]
[352320039,1739040661296,-653.39,0.0001082,2]
[352320040,1739040661308,-1602.28,0.0001082,2]
[352320041,1739040661317,-1053.71,0.0001082,2]
[352320042,1739040661327,-500.0,0.0001082,2]
[352320043,1739040661336,-3166.67,0.0001082,2]
[352320044,1739040661346,-500.0,0.0001082,2]
[352320045,1739040661356,-585.49,0.0001082,2]
[352320046,1739040661366,-1679.98,0.0001082,2]
[352320047,1739040661377,-904.18,0.0001082,2]
[352320048,1739040661387,-1568.8,0.0001082,2]
[352320049,1739040661396,-500.0,0.0001082,2]
[352320050,1739040661406,-500.0,0.0001082,2]
[352320051,1739040661420,-1400.81,0.0001082,2]
[352320052,1739040661430,-500.0,0.0001082,2]
[352320053,1739040661440,-511.81,0.0001082,2]
[352320054,1739040661449,-500.0,0.0001082,2]
[352320055,1739040661459,-500.0,0.0001082,2]
[352320056,1739040661470,-804.57,0.0001082,2]
[352320057,1739040661480,-697.81,0.0001082,2]
[352320058,1739040661498,-2077.69,0.0001082,2]
[352320059,1739040661518,-1280.25,0.0001082,2]
[352320060,1739040661531,-500.0,0.0001082,2]
[352320061,1739040661543,-1663.58,0.0001082,2]
[352320062,1739040661553,-500.0,0.0001082,2]
[352320063,1739040661565,-500.0,0.00010821,2]
[352320064,1739040661575,-500.0,0.00010821,2]
[352320065,1739040661584,-500.0,0.00010821,2]
[352320066,1739040661595,-466.21342106,0.00010821,2]
[352320067,1739040661610,-33.78657894,0.00010821,2]
[352320068,1739040661620,-351.63146502,0.00010821,2]
[352320069,1739040661634,-148.36853498,0.00010821,2]
[352320070,1739040661645,-500.0,0.00010821,2]
[352320071,1739040661654,-500.0,0.00010821,2]
[352320072,1739040661664,-500.0,0.00010821,2]
[352320073,1739040661674,-500.0,0.00010821,2]
[352320074,1739040661684,-500.0,0.00010821,2]
[352320075,1739040661693,-500.0,0.00010821,2]
[352320076,1739040661703,-500.0,0.00010821,2]
[352320077,1739040661713,-500.0,0.00010821,2]
[352320078,1739040661723,-500.0,0.00010821,2]
[352320079,1739040661733,-500.0,0.00010821,2]
[352320080,1739040661743,-500.0,0.00010821,2]
[352320081,1739040661753,-500.0,0.00010821,2]
[352320082,1739040661762,-500.0,0.00010821,2]
[352320083,1739040661772,-500.0,0.00010821,2]
[352320084,1739040661782,-500.0,0.00010821,2]
[352320085,1739040661792,-500.0,0.00010821,2]
[352320086,1739040661803,-500.0,0.00010821,2]
[352320087,1739040661813,-500.0,0.00010821,2]
[352320088,1739040661823,-500.0,0.00010821,2]
[352320089,1739040661832,-500.0,0.00010821,2]
[352320090,1739040661843,-500.0,0.00010821,2]
[352320091,1739040661853,-500.0,0.00010821,2]
[352320092,1739040661864,-500.0,0.00010821,2]
[352320093,1739040661873,-500.0,0.00010821,2]
[352320094,1739040661884,-265.68462853,0.00010821,2]
[352320095,1739040661893,-500.0,0.00010821,2]
[352320096,1739040661903,-500.0,0.00010821,2]
[352320097,1739040661913,-500.0,0.00010821,2]
[352320098,1739040661925,-500.0,0.00010821,2]
[352320099,1739040661935,-892.29,0.00010821,2]
[352320100,1739040661944,-500.0,0.00010821,2]
[352320101,1739040661957,-704.67,0.00010821,2]
[352320102,1739040661967,-500.0,0.00010821,2]
[352320103,1739040661977,-632.37,0.00010821,2]
[352320104,1739040661987,-500.0,0.00010821,2]
[352320105,1739040661997,-698.41,0.00010821,2]
[352320106,1739040662007,-500.0,0.00010821,2]
[352320107,1739040662017,-500.0,0.00010821,2]
[352320108,1739040662026,-500.0,0.00010821,2]
[352320109,1739040662037,-500.0,0.00010821,2]
[352320110,1739040662047,-516.51,0.00010821,2]
[352320111,1739040662057,-500.0,0.00010821,2]
[352320112,1739040662067,-500.0,0.00010821,2]
[352320113,1739040662077,-272.75461387,0.00010821,2]
[352320114,1739040662087,-992.45,0.00010821,2]
[352320115,1739040662097,-500.0,0.00010821,2]
[352320116,1739040662107,-500.0,0.00010821,2]
[352320117,1739040662118,-500.0,0.00010821,2]
[352320118,1739040662127,-500.0,0.00010821,2]
[352320119,1739040662138,-801.97,0.00010821,2]
[352320120,1739040662148,-500.0,0.00010821,2]
[352320121,1739040662158,-541.42,0.00010821,2]
[352320122,1739040662167,-598.71,0.00010821,2]
[352320123,1739040662177,-500.0,0.00010821,2]
[352320124,1739040662187,-500.0,0.00010821,2]
[352320125,1739040662198,-570.8,0.00010821,2]
[352320126,1739040662208,-863.44,0.00010821,2]
[352320127,1739040662217,-500.0,0.00010821,2]
[352320128,1739040662227,-500.0,0.00010821,2]
[352320129,1739040662238,-500.0,0.00010821,2]
[352320130,1739040662248,-500.0,0.00010821,2]
[352320131,1739040662258,-959.22,0.00010821,2]
[352320132,1739040662268,-500.0,0.00010821,2]
[352320133,1739040662278,-500.0,0.00010821,2]
[352320134,1739040662289,-500.0,0.00010821,2]
[352320135,1739040662300,-500.0,0.00010821,2]
[352320136,1739040662311,-509.81,0.00010821,2]
[352320137,1739040662321,-500.0,0.00010821,2]
[352320138,1739040662332,-628.37125592,0.00010821,2]
[352320139,1739040662342,-824.88,0.00010821,2]
[352320140,1739040662353,-500.0,0.00010821,2]
[352320141,1739040662363,-818.12,0.00010821,2]
[352320142,1739040662372,-500.0,0.00010821,2]
[352320143,1739040662382,-500.0,0.00010821,2]
[352320144,1739040662392,-500.0,0.00010821,2]
[352320145,1739040662403,-533.58,0.00010821,2]
[352320146,1739040662414,-500.0,0.00010821,2]
[352320147,1739040662424,-500.0,0.00010821,2]
[352320148,1739040662434,-500.0,0.00010821,2]
[352320149,1739040662444,-500.0,0.00010821,2]
[352320150,1739040662454,-500.0,0.00010821,2]
[352320151,1739040662464,-514.1,0.00010821,2]
[352320152,1739040662473,-500.0,0.00010821,2]
[352320153,1739040662484,-500.0,0.00010821,2]
[352320154,1739040662496,-525.36,0.00010821,2]
[352320155,1739040662507,-500.0,0.00010821,2]
[352320156,1739040662517,-500.0,0.00010821,2]
[352320157,1739040662527,-705.24,0.00010821,2]
[352320158,1739040662537,-500.0,0.00010821,2]
[352320159,1739040662547,-500.0,0.00010821,2]
[352320160,1739040662561,-500.0,0.00010821,2]
[352320161,1739040662572,-693.46,0.00010821,2]
[352320162,1739040662582,-1380.81,0.00010821,2]
[352320163,1739040662592,-826.86,0.00010821,2]
[352320164,1739040662603,-500.0,0.00010821,2]
[352320165,1739040662613,-1217.96,0.00010821,2]
[352320166,1739040662623,-950.06,0.00010821,2]
[352320167,1739040662635,-1018.16,0.00010821,2]
[352320168,1739040662646,-500.0,0.00010821,2]
[352320169,1739040662656,-4440.08,0.00010821,2]
[352320170,1739040662667,-500.0,0.00010821,2]
[352320171,1739040662677,-907.44,0.00010821,2]
[352320172,1739040662687,-550.5,0.00010821,2]
[352320173,1739040662696,-1206.48,0.00010821,2]
[352320174,1739040662706,-500.0,0.00010821,2]
[352320175,1739040662716,-500.0,0.00010821,2]
[352320176,1739040662727,-500.0,0.00010821,2]
[352320177,1739040662736,-1299.55,0.00010821,2]
[352320178,1739040662746,-509.54,0.00010821,2]
[352320179,1739040662756,-1082.73,0.00010821,2]
[352320180,1739040662766,-1026.14,0.00010821,2]
[352320181,1739040662776,-500.0,0.00010821,2]
[352320182,1739040662786,-1645.78,0.00010821,2]
[352320183,1739040662796,-500.0,0.00010821,2]
[352320184,1739040662806,-1105.4,0.00010821,2]
[352320185,1739040662816,-941.65,0.00010821,2]
[352320186,1739040662825,-1091.51,0.00010821,2]
[352320187,1739040662835,-500.0,0.00010821,2]
[352320188,1739040662846,-1509.86,0.00010821,2]
[352320189,1739040662856,-500.0,0.00010821,2]
[352320190,1739040662866,-1781.25,0.00010821,2]
[352320191,1739040662876,-500.0,0.00010821,2]
[352320192,1739040662886,-500.0,0.00010821,2]
[352320193,1739040662896,-1219.25,0.00010821,2]
[352320194,1739040662906,-500.0,0.00010821,2]
[352320195,1739040662916,-1120.47,0.00010821,2]
[352320196,1739040662926,-513.37,0.00010821,2]
[352320197,1739040662936,-500.0,0.00010821,2]
[352320198,1739040662947,-500.0,0.00010821,2]
[352320199,1739040662957,-1699.35,0.00010821,2]
[352320200,1739040662968,-500.0,0.00010821,2]
[352320201,1739040662979,-1753.37,0.00010821,2]
[352320202,1739040663179,-500.0,0.00010821,2]
[352320203,1739040663190,-500.0,0.00010821,2]